[Event "Julius Baer Generation Cup Prelims 2022"]
[Site "Online"]
[Date "2022.09.14"]
[Round "11.3"]
[White "Erigaisi Arjun"]
[Black "Gelfand, Boris"]
[Result "1/2-1/2"]
[ECO "D00"]
[WhiteElo "2725"]
[BlackElo "2668"]
[Annotator "TA"]
[PlyCount "135"]
[EventDate "2022.09.12"]
[EventType "tourn"]
[EventCountry "NET"]
[SourceTitle "playchess.com"]
[Source "ChessBase"]
[SourceQuality "1"]
[TimeControl "900+10"]

{[%evp 9,135,1,4,-7,0,0,0,-2,10,0,0,0,1,6,19,-8,0,0,-3,-15,-27,-44,-42,-37,16,23,16,0,15,0,0,0,35,29,47,42,38,40,39,26,37,-58,48,50,55,56,53,50,58,12,14,0,0,0,0,0,33,-57,-52,-58,-50,-122,0,-27,0,0,0,0,0,0,8,0,0,0,0,0,0,0,16,16,16,16,17,16,16,22,57,57,57,57,58,58,60,32,32,32,32,18,31,32,32,32,32,2,2,2,2,2,2,2,2,2,2,2,2,2,2,2,2,2,2,2,2,0,2,0,2,0]} 1. d4 {[%emt 0:00:00]} Nf6 {[%emt 0:00:00]} 2. Nc3 {[%emt 0:00:03]} d5 {[%emt 0:00:02]} 3. Bf4 {[%emt 0:00:01]} e6 {[%emt 0:00:08]} 4. Nb5 {[%emt 0:00:02][%cal Bc3b5,Bb5a3,Ba3b1,Bb1d2,Bd2f3][%mdl 32]} Bb4+ {[%emt 0:00:04]} 5. c3 {[%emt 0:00:02]} Ba5 {[%emt 0:00:01] CPLX 2.5} 6. e3 {[%emt 0:00:02] CPLX 2.2 11 (Ng1-f3) (=11). D00: 1 d4 d5: Unusual lines.} a6 {[%emt 0:00:44] CPLX 2.4 7 (0-0) (=4)} 7. Na3 {[%emt 0:00:01] CPLX 2.6} O-O {[%emt 0:00:01][%cal Oc7c5] CPLX 2.3 0 (Nb8-d7) (=2)} 8. Nf3 {[%emt 0:00:02] CPLX 2.2} c6 {[%emt 0:01:22] CPLX 2.1 12 (Nb8-d7) (=5)} 9. Bd3 {[%emt 0:00:10] CPLX 2.3} Bc7 {[%emt 0:00:01] [#] CPLX 2.5 0 (Nb8-d7) (=4)} 10. Nb1 $146 {[%emt 0:00:14] CPLX 2.4 0 (0-0) (=2)} ({Predecessor:} 10. O-O c5 11. dxc5 Nbd7 12. Bxc7 Qxc7 13. c4 dxc4 14. Nxc4 Nxc5 15. Rc1 b5 16. Nce5 Qb6 17. Ng5 Nxd3 18. Qxd3 h6 19. Ne4 Nxe4 20. Qxe4 {½-½ (20) Darini,P (2518)-Mousavi,S (2412) Teheran 2017}) 10... Nbd7 {[%emt 0:00:10] CPLX 2.3 1 (c6-c5) (=3)} 11. Nbd2 {[%emt 0:00:08] CPLX 2.4 0 (0-0) (=2)} b6 {[%emt 0:00:59] CPLX 2.4 13 (c6-c5) (=5)} 12. Bg3 {[%emt 0:00:36] CPLX 2.4 27 (Nf3-e5) (=5)} c5 {[%emt 0:00:20] CPLX 2.3 8 (Bc8-b7) (=5)} 13. Ne5 {[%emt 0:00:24] [#] Hoping for Nc6. BESTDEEP} Bb7 {[%emt 0:00:03] Prevents Nc6. BESTDEEP} 14. Qb1 {[%emt 0:00:46] CPLX 3.0 12 (0-0) (=6)} g6 {[%emt 0:01:01] BESTDEEP} 15. f4 {[%emt 0:01:47] CPLX 2.7 17 (Nd2-f3) (=7)} Nh5 {[%emt 0:00:05] BESTDEEP} 16. Ndf3 {[%emt 0:00:02] BESTDEEP} f5 {[%emt 0:01:21] RELBLUND 53 (f7-f6) (=8)} (16... f6 $15 17. Bh4 Ng7) 17. Bh4 $11 {[%emt 0:00:08] EASY} Qe8 {[%emt 0:00:03] CPLX 3.2 0 (Nh5-f6) (=7)} 18. Rg1 {[%emt 0:00:35] CPLX 2.9 16 (Bh4-g5) (=6)} Nxe5 {[%emt 0:01:52] CPLX 2.9 15 (Nh5-f6) (=8)} 19. Nxe5 {[%emt 0:00:30] RECAPT} Bxe5 {[%emt 0:00:45] RECAPT} 20. fxe5 {[%emt 0:00:14] CPLX 3.0 0 (d4xe5) (=6)} Bc6 {[%emt 0:00:13] CPLX 2.4 35 (a6-a5) (=9)} 21. Be2 {[%emt 0:00:32] CPLX 2.4 6 (Bd3-c2) (=6)} Bb5 {[%emt 0:01:17] CPLX 2.4 18 (a6-a5) (=10)} 22. Bxh5 {[%emt 0:03:01] BESTDEEP} gxh5 {[%emt 0:00:03] RECAPT} 23. Bf6 {[%emt 0:00:01] CPLX 2.6 0 (Qb1-c2) (=5)} a5 {[%emt 0:00:30] BESTDEEP} 24. h3 {[%emt 0:01:07] CPLX 3.2 13 (Ke1-f2) (=5)} Qg6 {[%emt 0:00:55] BESTDEEP} 25. g4 {[%emt 0:00:05] RELBLUND 95 (Ke1-f2) (=10)} (25. Kf2 $14) 25... fxg4 {[%emt 0:01:04] RELBLUND 106 (h5xg4) (=13)} (25... hxg4 $15 26. hxg4 cxd4 27. exd4 Kf7) 26. Qxg6+ $14 {[%emt 0:00:40] CPLX 4.0=>BLUNDERREACT} hxg6 {[%emt 0:00:02] LEGAL} 27. hxg4 {[%emt 0:00:00] CPLX 2.5} h4 {[%emt 0:00:23] BESTDEEP} 28. Bxh4 {[%emt 0:03:45] CPLX 2.3 3 (0-0-0) (=9)} Rf3 {[%emt 0:00:03] CPLX 2.1} 29. Bg5 {[%emt 0:00:01] CPLX 2.2 46 (0-0-0) (=10)} (29. O-O-O $14) 29... Raf8 $11 {[%emt 0:02:39] CPLX 2.2} 30. O-O-O {[%emt 0:00:03] CPLX 2.3 14 (Bg5-f6) (=10)} Be2 {[%emt 0:00:03] CPLX 2.2} 31. Rde1 {[%emt 0:00:16] CPLX 2.4 0 (Rd1-d2) (=10)} Bd3 {[%emt 0:00:05] BESTDEEP} 32. Bf6 {[%emt 0:01:56] CPLX 2.2 0 (Bg5-e7) (=10)} g5 {[%emt 0:01:19] CPLX 2.5 33 (Rf3-f2) (=11)} 33. Kd2 {[%emt 0:01:02] RELBLUND 90 (Rg1-g2) (=13)} (33. Rg2 $14) 33... Rf2+ $15 {[%emt 0:00:14][%mdl 1024] Black has compensation. EASY} 34. Kc1 {[%emt 0:00:11] EASY} a4 {[%emt 0:00:47][%cal Oa4a3] Strongly threatening ...a3! BESTDEEP} 35. a3 {[%emt 0:00:20] CPLX 2.9 72 (Rg1-h1) (=14)} (35. Bxg5 Rc2+ 36. Kd1 Rff2) (35. Rh1 $15) 35... Rf7 {[%emt 0:00:48] CPLX 3.0 122 (Bd3-e4) (=14)} (35... Be4 $17 {aiming for ...Rf7.} 36. Rgf1 (36. Bxg5 Rc2+ 37. Kd1 Rff2) 36... Rc2+ 37. Kb1 Rxc3+ 38. Ka1 Rd3) 36. Rd1 {[%emt 0:00:41] CPLX 2.9 27 (Rg1-h1) (=14)} (36. Bxg5 Rc2+ 37. Kd1 Rff2) (36. Rh1 $5 {[%cal Rh1h8]} Rh7 37. Rxh7 (37. Bxg5 Rc2+ 38. Kd1 Rxb2 $17) 37... Kxh7 38. Rh1+ (38. Bxg5 Rc2+ 39. Kd1 Kg6 $17) 38... Kg6 39. Rh5 $11) 36... Be4 {[%emt 0:00:11] Threatens to win with ...Rc2+. CPLX 3.1 27 (Rf2-c2) (=14)} 37. Rd2 {[%emt 0:00:09] Inhibits Rc2+. CPLX 2.8} (37. Bxg5 Rc2+ 38. Kb1 Rff2) 37... Rxd2 {[%emt 0:00:01] CPLX 3.0} 38. Kxd2 $11 {[%emt 0:00:00][%mdl 4096] Endgame KRB-KRB. RECAPT} Rh7 {[%emt 0:00:01] CPLX 2.3} 39. Re1 {[%emt 0:00:12] BESTDEEP} Bf3 {[%emt 0:01:01] CPLX 2.1 8 (Rh7-h2) (=13)} 40. c4 {[%emt 0:00:26] CPLX 2.1 8 (Bf6xg5) (=13)} Rh2+ {[%emt 0:00:03] BESTDEEP} 41. Kc3 {[%emt 0:00:01] CPLX 2.2} Be4 {[%emt 0:00:01][%csl Ge4][%cal Rh2c2] CPLX 2.7} 42. Rc1 {[%emt 0:00:11] Inhibits Rc2+. CPLX 2.9} cxd4+ $1 {[%emt 0:00:18] CPLX 2.7} 43. exd4 {[%emt 0:00:01] RECAPT} Rh3+ {[%emt 0:00:02] CPLX 2.3 16 (d5xc4) (=12)} 44. Kd2 $1 {[%emt 0:00:14] DEEPSTRONG} (44. Kb4 Rb3+ 45. Kxa4 dxc4 46. Rxc4 Rxb2 47. Rc8+ Kf7 $19) 44... Rh2+ {[%emt 0:00:12] CPLX 2.1 0 (d5xc4) (=12)} 45. Ke3 {[%emt 0:00:28] CPLX 2.0} Rh3+ {[%emt 0:00:03] CPLX 2.6} 46. Kf2 {[%emt 0:00:11] CPLX 2.3} dxc4 {[%emt 0:01:03] CPLX 2.3} 47. Rxc4 {[%emt 0:00:00] RECAPT} Rh2+ {[%emt 0:00:01] CPLX 2.2 35 (Rh3-f3) (=12)} 48. Ke3 {[%emt 0:00:05] EASY} Bd5 {[%emt 0:00:01] CPLX 2.6} 49. Rb4 {[%emt 0:00:45] BESTDEEP} Rg2 {[%emt 0:00:11] CPLX 2.3 1 (Rh2-h4) (=11)} 50. Bxg5 {[%emt 0:00:13] DEEPSTRONG} ({But not} 50. Rxb6 Rxg4 51. Rb4 Rg3+ 52. Kd2 g4 $15) 50... Rg3+ {[%emt 0:00:07] CPLX 2.3 2 (Rg2xg4) (=11)} 51. Kd2 {[%emt 0:00:08] CPLX 2.0 28 (Ke3-e2) (=11)} Rxg4 {[%emt 0:00:06] And now ...Rg2+ would win. CPLX 2.0} 52. Be3 {[%emt 0:00:09] CPLX 2.0} Rg2+ {[%emt 0:00:33] EASY} 53. Ke1 {[%emt 0:00:02] CPLX 2.0 14 (Kd2-c3) (=10)} Bb3 {[%emt 0:00:12] CPLX 2.0 13 (Rg2-c2) (=11)} 54. Bf2 {[%emt 0:00:03] BESTDEEP} Kf7 {[%emt 0:00:07] CPLX 2.0} 55. Rxb6 {[%emt 0:00:01] CPLX 2.0} Kg6 {[%emt 0:00:06] BESTDEEP} 56. Ra6 {[%emt 0:00:22][%cal Od4d5] CPLX 2.0 30 (d4-d5) (=10)} Kf5 {[%emt 0:00:03] CPLX 2.0. The position is equal.} 57. d5 {[%emt 0:00:00] BESTDEEP} exd5 {[%emt 0:00:17] CPLX 2.2} 58. e6 {[%emt 0:00:07] CPLX 2.1} Rg6 {[%emt 0:00:14] BESTDEEP} 59. e7 {[%emt 0:00:04] Rxg6 would kill now. CPLX 2.2 0 (Ke1-d2) (=10)} Rxa6 {[%emt 0:00:01] EASY} 60. e8=Q {[%emt 0:00:01] Intending Qh5+ and mate. CPLX 2.3} Re6+ {[%emt 0:00:01] [#] EASY} 61. Qxe6+ $1 {[%emt 0:00:01]} Kxe6 {[%emt 0:00:01] KB-KB} 62. Kd2 {[%emt 0:00:00]} Kd7 {[%emt 0:00:02]} 63. Kc3 {[%emt 0:00:01]} Kc6 {[%emt 0:00:01]} 64. Bd4 {[%emt 0:00:01]} Kb5 {[%emt 0:00:02]} 65. Be3 {[%emt 0:00:00]} Kc6 {[%emt 0:00:01]} 66. Bd4 {[%emt 0:00:00]} Kb5 {[%emt 0:00:01]} 67. Be3 {[%emt 0:00:00]} Kc6 {[%emt 0:00:00]} 68. Bd4 {[%emt 0:00:00] Weighted Error Value: White=0.12 (very precise) /Black=0.12 (very precise)} 1/2-1/2

[Event "Julius Baer Generation Cup Prelims 2022"]
[Site "Online"]
[Date "2022.09.14"]
[Round "11.4"]
[White "Carlsen, Magnus"]
[Black "Duda, Jan-Krzysztof"]
[Result "1-0"]
[ECO "D35"]
[WhiteElo "2861"]
[BlackElo "2731"]
[Annotator "TA"]
[PlyCount "61"]
[EventDate "2022.09.12"]
[EventType "tourn"]
[EventCountry "NET"]
[SourceTitle "playchess.com"]
[Source "ChessBase"]
[SourceQuality "1"]
[TimeControl "900+10"]

{[%evp 12,61,8,15,29,22,22,16,10,8,9,17,12,6,14,6,16,9,4,0,27,0,0,0,0,0,33,6,28,0,0,-27,172,182,230,198,362,345,498,491,743,743,938,935,909,887,801,923,868,684,29988,5682]} 1. c4 {[%emt 0:00:00]} e6 {[%emt 0:00:00]} 2. Nc3 {[%emt 0:00:04]} d5 {[%emt 0:00:03]} 3. d4 {[%emt 0:00:01]} Nf6 {[%emt 0:00:01]} 4. cxd5 {[%emt 0:00:01]} Nxd5 {[%emt 0:00:00]} 5. e4 {[%emt 0:00:13]} Nxc3 {[%emt 0:00:01]} 6. bxc3 {[%emt 0:00:00]} c5 {[%emt 0:00:01]} 7. Rb1 {[%emt 0:00:11] BESTDEEP} cxd4 {[%emt 0:00:04] CPLX 2.6 14 (Bf8-e7) (=14). D35: Queen's Gambit Declined: Exchange Variation.} 8. cxd4 {[%emt 0:00:01] RECAPT} Nc6 {[%emt 0:00:01] CPLX 2.6 0 (Bf8-e7) (=7)} 9. Nf3 {[%emt 0:00:12] CPLX 2.3 6 (Bf1-b5) (=2)} Bb4+ {[%emt 0:00:05] EASY. The position is equal.} 10. Bd2 {[%emt 0:00:02] CPLX 2.5} Bxd2+ {[%emt 0:00:00] CPLX 2.7} 11. Qxd2 {[%emt 0:00:01] RECAPT} O-O {[%emt 0:00:01] CPLX 2.2} 12. Bb5 {[%emt 0:01:16] CPLX 2.2} Ne7 {[%emt 0:00:03] CPLX 2.3 8 (Nc6-a5) (=4)} 13. O-O {[%emt 0:00:13] CPLX 2.2} b6 {[%emt 0:00:04] BESTDEEP} 14. a4 {[%emt 0:00:34] CPLX 2.2 7 (Rf1-e1) (=2)} Bb7 {[%emt 0:00:22] [#] CPLX 2.2} 15. Rfe1 $5 $146 {[%emt 0:00:24][%mdl 8] CPLX 2.3 4 (Qd2-e3) (=2) An interesting novelty.} ({Predecessor:} 15. Bd3 Nc6 16. Qe3 Qe7 17. Rfd1 Nb4 18. Bf1 Rac8 19. Ne1 Rc7 20. Rdc1 Rfc8 21. Rxc7 Rxc7 {0-1 (36) Maksimenko,A (2548)-Trent,L (2424) Aarhus 2014}) 15... Qd6 {[%emt 0:01:09] CPLX 2.3 27 (Ra8-c8) (=5)} 16. Ne5 {[%emt 0:01:01] CPLX 2.5 27 (d4-d5) (=4)} (16. d5 $5) 16... Rfd8 {[%emt 0:03:11] aiming for ...Qxe5. BESTDEEP} 17. Rbd1 {[%emt 0:00:04] CPLX 3.0} Rac8 {[%emt 0:00:05] BESTDEEP} 18. h4 {[%emt 0:00:10] BESTDEEP} (18. Qf4 $2 f6 19. Qg4 fxe5 $19) 18... f6 {[%emt 0:03:09] CPLX 3.3 33 (Ne7-c6) (=7)} 19. Nc4 {[%emt 0:00:45] CPLX 3.4} Qc7 {[%emt 0:00:21] White must now prevent ...a6. CPLX 3.2} 20. Rc1 {[%emt 0:01:36][%cal Od4d5] CPLX 2.9 28 (Nc4-a3) (=5)} Qb8 {[%emt 0:00:05] Strongly threatening ...a6. DEEPSTRONG} 21. e5 {[%emt 0:03:31] CPLX 3.0 27 (Rc1-d1) (=7)} a6 $2 {[%emt 0:01:53] Loses the game. RELBLUND 199 (Ne7-f5) (=19)} (21... Nf5 $11 {and Black is okay.} 22. exf6 gxf6) 22. exf6 $18 {[%emt 0:00:02] CPLX 3.3=>BLUNDERREACT} gxf6 {[%emt 0:00:00] CPLX 5.2 48 (Ne7-d5) (=21)} (22... Nd5 $142) 23. Qe2 {[%emt 0:00:16] EASY} Kh8 $2 {[%emt 0:03:21] MISSDEEP-Bb7-d5 164 (Bb7-d5) (=29)} (23... e5 $2 24. Bd7 $1 {[%mdl 512]} Kh8 25. Bxc8 (25. Nxb6 Rxc1 26. Rxc1 Bxg2 $17) 25... Rxc8 26. dxe5 $18) (23... Bd5) 24. Qxe6 {[%emt 0:00:04] The board is on fire. EASY} Nd5 {[%emt 0:00:03] MISSDEEP-Qb8-f4 153 (Qb8-f4) (=36)} (24... Qf4 $142) 25. Bd7 {[%emt 0:01:44] Threatens to win with Nd6. EASY} Rc7 {[%emt 0:00:02] [#] EVAL 252 (Rd8-g8) (=47)} (25... Rg8 $142 26. Bxc8 Qxc8 27. Qxc8 Bxc8) 26. Ne5 $1 {[%emt 0:00:51][%cal Bc4e5,Be5f7,Bf7d6][%mdl 544] White threatens Nf7+ and mate. EVAL} Rxc1 {[%emt 0:00:50] EVAL 195 (Rc7xd7) (=55)} (26... Rcxd7 27. Nxd7) 27. Nf7+ {[%emt 0:00:03] EVAL} Kg7 {[%emt 0:00:03] EVAL} 28. Rxc1 {[%emt 0:00:01] Qg4+ is the strong threat. EVAL} Qf4 {[%emt 0:01:01] EVAL} 29. Re1 {[%emt 0:00:17] EVAL 0 (Rc1-c4) (=4)} (29. Nxd8 $2 {is the wrong capture.} Qxc1+ 30. Kh2 Qc7+ 31. Kg1 Qc1+ 32. Kh2 Qc7+ 33. Kg1 Qxd8 $19) 29... Rg8 {[%emt 0:00:14] EVAL} 30. Nd6 {[%emt 0:00:15] White wants to mate with Qf7+. CPLX 5.0} Ba8 {[%emt 0:01:27] RELBLUND 400 (Kg7-h8) (=62)} 31. Re4 {[%emt 0:01:43] Weighted Error Value: White=0.06 (flawless) /Black=0.66} (31. Qf7+ $142 Kh6 32. Nf5+ Qxf5 33. Bxf5 Rg7 34. Qf8 Bb7 35. Re6 Bc6 36. Rxc6) 1-0

[Event "Julius Baer Generation Cup Prelims 2022"]
[Site "Online"]
[Date "2022.09.14"]
[Round "11.5"]
[White "Adhiban, B.."]
[Black "Ivanchuk, Vasyl"]
[Result "1/2-1/2"]
[ECO "A30"]
[WhiteElo "2603"]
[BlackElo "2678"]
[Annotator "TA"]
[PlyCount "60"]
[EventDate "2022.09.12"]
[EventType "tourn"]
[EventCountry "NET"]
[SourceTitle "playchess.com"]
[Source "ChessBase"]
[SourceQuality "1"]
[TimeControl "900+10"]

{[%evp 20,60,14,18,17,14,19,23,24,22,36,25,31,20,18,23,29,10,13,18,10,0,0,0,0,0,0,0,0,0,0,0,0,0,0,0,0,0,0,0,0,0,0]} 1. c4 {[%emt 0:00:00]} Nf6 {[%emt 0:00:00]} 2. Nf3 {[%emt 0:00:09]} b6 {[%emt 0:00:17]} 3. g3 {[%emt 0:00:59]} c5 {[%emt 0:00:05]} 4. Bg2 {[%emt 0:00:02]} Bb7 {[%emt 0:00:01]} 5. b3 {[%emt 0:00:12]} g6 {[%emt 0:00:17]} 6. Bb2 {[%emt 0:00:05]} Bg7 {[%emt 0:00:01]} 7. d4 {[%emt 0:00:01]} cxd4 {[%emt 0:00:08]} 8. Qxd4 {[%emt 0:00:03]} d6 {[%emt 0:00:06]} 9. Nc3 {[%emt 0:00:10]} Nbd7 {[%emt 0:00:04]} 10. O-O {[%emt 0:00:03]} O-O {[%emt 0:00:09]} 11. Rfd1 $1 {[%emt 0:00:07][%cal Bf1d1,Bd1d4,Bd4h4][%mdl 32] DEEPSTRONG} Ne4 {[%emt 0:00:48] A30: Symmetrical English: Double Fianchetto and Hedgehog.} 12. Qe3 {[%emt 0:00:03] CPLX 3.5} Nxc3 {[%emt 0:00:02] BESTDEEP} 13. Bxc3 {[%emt 0:00:00] RECAPT} Bxc3 {[%emt 0:00:01] RECAPT 1 (Nd7-f6) (=0). White has an edge.} 14. Qxc3 {[%emt 0:00:00] RECAPT} Qc7 {[%emt 0:00:07] CPLX 2.7 14 (Ra8-c8) (=4)} 15. Qe3 {[%emt 0:00:36] CPLX 2.6 11 (Nf3-d4) (=2)} Nf6 {[%emt 0:00:03] CPLX 2.1} 16. Rd4 {[%emt 0:00:15] CPLX 2.0 11 (Ra1-c1) (=4)} Kg7 {[%emt 0:02:57] CPLX 2.2 0 (e7-e5) (=3)} 17. Rad1 {[%emt 0:00:08] CPLX 2.5} Rad8 {[%emt 0:00:18] BESTDEEP} 18. Rh4 {[%emt 0:00:53] CPLX 2.6 19 (Qe3-d2) (=5)} h5 {[%emt 0:00:02] [#] CPLX 3.5. The position is equal.} 19. Nd4 $146 {[%emt 0:00:59][%cal Od4f5] [#] Intending Nf5+! and mate. BESTDEEP} ({Predecessor:} 19. Rhd4 Rfe8 20. Ne1 e5 21. R4d2 Bxg2 22. Nxg2 Qc6 23. Qf3 Qc5 24. h3 Re6 25. Kh2 {1-0 (36) Roeder,M (2395)-Cocconcelli,L (2100) Cesenatico 2015}) 19... Bxg2 {[%emt 0:00:03] BESTDEEP} 20. Nf5+ {[%emt 0:00:44] MISS-Kg1xg2 10 (Kg1xg2) (=5)} gxf5 {[%emt 0:00:09] EASY} 21. Qg5+ {[%emt 0:00:02] CPLX 4.4} Kh7 $1 {[%emt 0:00:02] ...Rg8 is the strong threat. DEEPSTRONG} 22. Rxh5+ {[%emt 0:01:01] DEEPSTRONG} Nxh5 {[%emt 0:00:02] LEGAL} 23. Qxh5+ {[%emt 0:00:00] RECAPT} Kg7 {[%emt 0:00:11] CPLX 4.1 0 (Kh7-g8) (=1)} 24. Qg5+ {[%emt 0:00:01] CPLX 4.9} Kh8 {[%emt 0:00:02] EASY} 25. Rd4 {[%emt 0:00:25][%cal Rd4h4] [#] BESTDEEP} Be4 {[%emt 0:00:13] EASY} 26. Rxe4 {[%emt 0:00:19] The board is on fire. BESTDEEP} fxe4 {[%emt 0:00:03] RECAPT} 27. Qh5+ {[%emt 0:00:01] CPLX 3.4 0 (Qg5-h4) (=3)} Kg8 {[%emt 0:00:04] CPLX 2.9 0 (Kh8-g7) (=1)} 28. Qg5+ {[%emt 0:00:01] CPLX 3.3} Kh8 {[%emt 0:00:01] And now ...Qc5 would win. CPLX 2.8 0 (Kg8-h7) (=1)} 29. Qh5+ {[%emt 0:00:01] CPLX 3.4 0 (Qg5-h6) (=3)} Kg8 {[%emt 0:00:01] Threatens to win with ...Qc5. CPLX 2.9 0 (Kh8-g7) (=1)} 30. Qg5+ {[%emt 0:00:00] CPLX 3.3} Kh8 {[%emt 0:00:01] A balanced but interesting game.  Weighted Error Value: White=0.02 (flawless) /Black=0.01 (flawless)} 1/2-1/2